fUSD/lending_fUSD_20260112
["ID","MTS","AMOUNT","RATE_DAILY","PERIOD"]
[401430990,1768207654256,-192.22162301,0.00011793,2]
[401430991,1768207654921,-15.27944231,0.00011794,2]
[401430992,1768207654946,-192.22162301,0.00011794,2]
[401430993,1768207654964,-7200.56462334,0.00011794,2]
[401430994,1768207654994,-10000.01,0.00011794,2]
[401430995,1768207655016,-10000.01,0.00011794,2]
[401430996,1768207655043,-10000.01,0.00011794,2]
[401430997,1768207655065,-9.27102619,0.00011794,2]
[401430998,1768207655075,-213.6634751,0.00011794,2]
[401430999,1768207655084,-9777.07549871,0.00011795,2]
[401431000,1768207655098,-222.91450129,0.00011795,2]
[401431001,1768207655107,-150.99,0.00011795,2]
[401431002,1768207655117,-499.99,0.00011795,2]
[401431003,1768207655127,-150.99,0.00011795,2]
[401431004,1768207655136,-233.0,0.00011795,2]
[401431005,1768207655147,-8742.12549871,0.00011795,2]
[401431006,1768207655168,-1257.86450129,0.00011795,2]
[401431007,1768207655178,-299.99,0.00011795,2]
[401431008,1768207655189,-999.99,0.00011795,2]
[401431009,1768207670673,-150.73606143,0.00011696,2]
[401431010,1768207673421,370.0,0.00027397,120]
[401431011,1768207681298,300.0,0.00011795,2]
[401431012,1768207682480,150.0,0.00011795,2]
[401431013,1768207684015,9248.53787714,0.00011787,2]
[401431014,1768207684039,10000.01,0.00011787,2]
[401431015,1768207684062,8287.54450356,0.00011787,2]
[401431016,1768207684614,1712.46549644,0.00011596,2]
[401431017,1768207684640,10000.01,0.00011596,2]
[401431018,1768207684664,10000.01,0.00011596,2]
[401431019,1768207684688,10000.01,0.00011596,2]
[401431020,1768207684712,10000.01,0.00011596,2]
[401431021,1768207684736,10000.01,0.00011596,2]
[401431022,1768207685704,-230.60288473,0.00011596,2]
[401431023,1768207689737,-203.20335228,0.00011596,2]
[401431024,1768207691569,-214.7707599,0.00011596,2]
[401431025,1768207693227,-258.6558289,0.00011596,2]
[401431026,1768207695399,-203.09776476,0.00011596,2]
[401431027,1768207696895,-315.00656508,0.00011596,2]
[401431028,1768207698443,-504.87620642,0.00011596,2]
[401431029,1768207702246,-500.0,0.00011596,2]
[401431030,1768207704559,-460.28866596,0.00011596,2]
[401431031,1768207706169,-221.11452198,0.00011596,2]
[401431032,1768207709070,-412.02256426,0.00011596,2]
[401431033,1768207711150,-645.08502106,0.00011596,2]
[401431034,1768207712724,-299.84871669,0.00011596,2]
[401431035,1768207714864,-170.10611626,0.00011596,2]
[401431036,1768207717201,-222.55405972,0.00011596,2]
[401431037,1768207718887,-285.12477799,0.00011596,2]
[401431038,1768207720596,-449.54523467,0.00011596,2]
[401431039,1768207722202,-397.7967996,0.00011596,2]
[401431040,1768207725065,-335.97211536,0.00011596,2]
[401431041,1768207728421,-215.53703469,0.00011596,2]
[401431042,1768207747112,-789.2022908,0.00011596,2]
[401431043,1768207751420,-37028.33548375,0.00011596,2]
[401431044,1768207752107,-317646.2338,0.00011596,2]
[401431045,1768207760642,-30861.59798492,0.00011596,2]
[401431046,1768207766151,-500.0,0.00011595,2]
[401431047,1768207766176,-500.0,0.00011595,2]
[401431048,1768207766197,-344.53514699,0.00011595,2]
[401431049,1768207766223,-3633.22863821,0.00011596,2]
[401431050,1768207777374,-156.75586223,0.00011595,2]
[401431051,1768207779174,637.3361715,0.0001152,2]
[401431052,1768207784436,1934.81936586,0.00011588,2]
[401431053,1768207801218,300.0,0.00011595,2]
[401431054,1768207801310,1200.0,0.00011595,2]
[401431058,1768207831974,-295737.85202793,0.00011596,2]
[401431059,1768207831986,-36256.86017043,0.00011596,2]
[401431060,1768207831998,-99480.53817697,0.00011596,2]
[401431061,1768207832011,-120308.42694024,0.00011596,2]
[401431062,1768207832021,-245.0,0.00011596,2]
[401431063,1768207832031,-300.0,0.0001162,2]
[401431064,1768207832041,-195.0,0.00011644,2]
[401431065,1768207832050,-300.0,0.00011644,2]
[401431066,1768207832060,-1285.87,0.00011693,2]
[401431067,1768207832069,-561.17465555,0.00011693,2]
[401431068,1768207832079,-561.17465555,0.00011693,2]
[401431069,1768207832088,-561.17465555,0.00011693,2]
[401431070,1768207832097,-561.17465555,0.00011693,2]
[401431071,1768207832106,-561.17465555,0.00011693,2]
[401431072,1768207832117,-561.17465555,0.00011693,2]
[401431073,1768207832127,-561.17465555,0.00011693,2]
[401431074,1768207832137,-561.17465555,0.00011693,2]
[401431075,1768207832146,-561.17465555,0.00011693,2]
[401431076,1768207832156,-561.17465555,0.00011693,2]
[401431077,1768207832165,-561.17465555,0.00011693,2]
[401431078,1768207832174,-561.17465555,0.00011693,2]
[401431079,1768207832184,-561.17465555,0.00011693,2]
[401431080,1768207832193,-561.17465555,0.00011693,2]
[401431081,1768207832202,-561.17465555,0.00011693,2]
[401431082,1768207832211,-561.17465555,0.00011693,2]
[401431083,1768207832221,-561.17465555,0.00011693,2]
[401431084,1768207832230,-561.17465555,0.00011693,2]
[401431085,1768207832240,-561.17465555,0.00011693,2]
[401431086,1768207832250,-561.17465555,0.00011693,2]
[401431087,1768207832259,-561.17465555,0.00011693,2]
[401431088,1768207832269,-561.17465555,0.00011693,2]
[401431089,1768207832279,-561.17465555,0.00011693,2]
[401431090,1768207832288,-561.17465555,0.00011693,2]
[401431091,1768207832298,-561.17465555,0.00011693,2]
[401431092,1768207832307,-561.17465555,0.00011693,2]
[401431093,1768207832316,-561.17465555,0.00011693,2]
[401431094,1768207832325,-561.17465555,0.00011693,2]
[401431095,1768207832335,-561.17465555,0.00011693,2]
[401431096,1768207832344,-561.17465555,0.00011693,2]
[401431097,1768207832354,-561.17465555,0.00011693,2]
[401431098,1768207832365,-561.17465555,0.00011693,2]
[401431099,1768207832374,-561.17465555,0.00011693,2]
[401431100,1768207832384,-561.17465555,0.00011693,2]
[401431101,1768207832394,-561.17465555,0.00011693,2]
[401431102,1768207832403,-561.17465555,0.00011693,2]
[401431104,1768207832412,-561.17465555,0.00011693,2]
[401431106,1768207832421,-561.17465555,0.00011693,2]
[401431108,1768207832431,-2773.712,0.00011695,2]
[401431110,1768207832440,-2500.0,0.00011696,2]
[401431112,1768207832450,-1000.0,0.00011796,2]
[401431114,1768207832460,-801.5017,0.00011796,2]
[401431115,1768207832469,-1285.87,0.00011967,2]
[401431117,1768207832479,-5931.22,0.00012087,2]
[401431120,1768207832489,-500.0,0.00012157,2]
[401431122,1768207832498,-1500.0,0.00012157,2]
[401431124,1768207832507,-5558.89,0.00012157,2]
[401431126,1768207832516,-183.63,0.00012157,2]
[401431128,1768207832525,-74150.6,0.00012157,2]
[401431130,1768207832535,-46944.62,0.00012157,2]
[401431131,1768207832544,-890.08,0.00012157,2]
[401431132,1768207832555,-2313.78546523,0.00012157,2]
[401431133,1768207832567,-1254.41808677,0.00012157,2]
[401431134,1768207832585,-681.30855541,0.00012157,2]
[401431135,1768207832596,-3913.56789259,0.00012157,2]
[401431136,1768207832605,-1131.1084579,0.00012199,2]
[401431137,1768207832616,-193.0,0.00012221,2]
[401431138,1768207832626,-300.0,0.00012222,2]
[401431139,1768207832635,-1285.87,0.00012241,2]
[401431140,1768207832644,-1101.0,0.00012299,2]
[401431141,1768207832654,-500.0,0.00012431,2]
[401431142,1768207832664,-485.13867695,0.00012431,2]
[401431143,1768207832693,-152.19749454,0.00012431,2]
[401431144,1768207832702,-194.58325611,0.00012515,2]
[401431145,1768207832723,-1091.28674389,0.00012515,2]
[401431146,1768207832733,-250.0,0.00012661,2]
[401431147,1768207832743,-542.89957297,0.00012705,2]
[401431148,1768207832753,-1680.0,0.00012754,2]
[401431149,1768207832762,-195.0,0.00012755,2]
[401431150,1768207832772,-195.0,0.00012755,2]
[401431151,1768207832782,-193.0,0.00012755,2]
[401431152,1768207832791,-300.0,0.00012755,2]
[401431153,1768207832801,-300.0,0.00012755,2]
[401431154,1768207832810,-250.0,0.00012755,2]
[401431155,1768207832822,-195.0,0.00012755,2]
[401431156,1768207832832,-250.0,0.00012755,2]
[401431157,1768207832842,-351.51473001,0.00012789,2]
[401431158,1768207832854,-397.33497739,0.00012789,2]
[401431159,1768207832901,-537.0202926,0.00012789,2]
[401431160,1768207832910,-420.0,0.00012841,2]
[401431161,1768207832919,-266.06992313,0.00012865,2]
[401431162,1768207832931,-33.93007687,0.00012865,2]
[401431163,1768207832940,-195.0,0.00012865,2]
[401431164,1768207832950,-255.0,0.00012869,2]
[401431165,1768207832959,-766.06992313,0.00012947,2]
[401431166,1768207832971,-334.93007687,0.00012947,2]
[401431167,1768207832982,-12.96992313,0.00012951,2]
[401431168,1768207832993,-204.28124411,0.00012951,2]
[401431169,1768207833003,-300.0,0.00012976,2]
[401431170,1768207833013,-127.57416337,0.00012976,2]
[401431191,1768207838137,-172.42583663,0.00012976,2]
[401431192,1768207838147,-250.0,0.00012976,2]
[401431193,1768207838158,-200.0,0.00013,2]
[401431194,1768207838168,-1285.87,0.00013063,2]
[401431195,1768207838182,-1131.10845788,0.00013149,2]
[401431196,1768207838194,-1285.87,0.00013337,2]
[401431197,1768207838204,-637.33617149,0.00013343,2]
[401431198,1768207838215,-500.0,0.0001337,2]
[401431199,1768207838225,-151.0,0.00013381,2]
[401431200,1768207838235,-268.06518829,0.00013381,2]
[401431201,1768207838244,-401.83440394,0.00013381,2]
[401431202,1768207838256,-250.0,0.00013381,2]
[401431203,1768207838266,-266.15702234,0.00013381,2]
[401431204,1768207838276,-683.82185525,0.00013381,2]
[401431205,1768207838286,-250.0,0.00013381,2]
[401431206,1768207838296,-274.26884757,0.00013381,2]
[401431207,1768207838307,-250.0,0.00013381,2]
[401431208,1768207838317,-202.24221661,0.00013381,2]
[401431209,1768207838330,-47.75778339,0.00013381,2]
[401431210,1768207838342,-322.6107,0.00013381,2]
[401431211,1768207838351,-250.0,0.00013381,2]
[401431212,1768207838364,-250.0,0.00013381,2]
[401431213,1768207838375,-250.0,0.00013381,2]
[401431214,1768207838385,-250.0,0.00013381,2]
[401431215,1768207838396,-250.0,0.00013381,2]
[401431217,1768207838406,-250.0,0.00013381,2]
[401431219,1768207838417,-250.0,0.00013381,2]
[401431221,1768207838429,-250.0,0.00013381,2]
[401431224,1768207838439,-250.0,0.00013381,2]
[401431226,1768207838449,-250.0,0.00013381,2]
[401431228,1768207838463,-250.0,0.00013381,2]
[401431230,1768207838475,-270.2171612,0.00013381,2]
[401431232,1768207838485,-250.0,0.00013381,2]
[401431234,1768207838494,-250.0,0.00013381,2]
[401431236,1768207838504,-250.0,0.00013381,2]
[401431239,1768207838514,-250.0,0.00013381,2]
[401431241,1768207838524,-621.07435029,0.00013381,2]
[401431244,1768207838535,-250.0,0.00013381,2]
[401431246,1768207838544,-250.0,0.00013381,2]
[401431248,1768207838554,-262.80813108,0.00013381,2]
[401431250,1768207838568,-250.0,0.00013381,2]
[401431252,1768207838578,-250.0,0.00013381,2]
[401431254,1768207838587,-202.5130151,0.00013381,2]
[401431256,1768207838597,-587.42192138,0.00013381,2]
[401431258,1768207838607,-533.88981491,0.00013381,2]
[401431260,1768207838616,-1000.0,0.00013381,2]
[401431262,1768207838626,-1000.0,0.00013381,2]
[401431264,1768207838635,-1000.0,0.00013381,2]
[401431265,1768207838645,-311.1,0.00013381,2]
[401431267,1768207838655,-1000.0,0.00013381,2]
[401431269,1768207838665,-1000.0,0.00013381,2]
[401431270,1768207838674,-620.0,0.00013381,2]
[401431271,1768207838684,-1000.0,0.00013381,2]
[401431272,1768207838694,-1000.0,0.00013381,2]
[401431273,1768207838703,-1000.0,0.00013381,2]
[401431274,1768207838713,-1000.0,0.00013381,2]
[401431275,1768207838723,-1000.0,0.00013381,2]
[401431276,1768207838733,-1000.0,0.00013381,2]
[401431277,1768207838746,-1000.0,0.00013381,2]
[401431278,1768207838756,-1125.63397898,0.00013381,2]
[401431279,1768207838767,-998.0,0.00013381,2]
[401431280,1768207838776,-150.73606143,0.00013599,2]
[401431281,1768207838786,-1285.87,0.00013611,2]
[401431282,1768207838796,-1101.0,0.00013628,2]
[401431283,1768207838806,-500.0,0.00013698,2]
[401431284,1768207838817,-500.0,0.00013698,2]
[401431285,1768207838831,-500.0,0.00013698,2]
[401431286,1768207838841,-500.0,0.00013698,2]
[401431287,1768207838851,-262.73857183,0.00013698,2]
[401431288,1768207838863,-500.0,0.00013698,2]
[401431289,1768207838875,-500.0,0.00013698,2]
[401431290,1768207838885,-500.0,0.00013698,2]
[401431291,1768207838896,-500.0,0.00013698,2]
[401431292,1768207838906,-500.0,0.00013698,2]
[401431293,1768207838916,-500.0,0.00013698,2]
[401431294,1768207838926,-500.0,0.00013698,2]
[401431295,1768207838936,-500.0,0.00013698,2]
[401431296,1768207838945,-500.0,0.00013698,2]
[401431297,1768207838959,-500.0,0.00013698,2]
[401431298,1768207838969,-500.0,0.00013698,2]
[401431299,1768207838979,-500.0,0.00013698,2]
[401431300,1768207838989,-500.0,0.00013698,2]
[401431301,1768207838999,-500.0,0.00013698,2]
[401431302,1768207839009,-500.0,0.00013698,2]
[401431303,1768207839020,-500.0,0.00013698,2]
[401431304,1768207839029,-500.0,0.00013698,2]
[401431305,1768207839039,-500.0,0.00013698,2]
[401431306,1768207839049,-500.0,0.00013698,2]
[401431307,1768207839058,-500.0,0.00013698,2]
[401431308,1768207839068,-500.0,0.00013698,2]
[401431309,1768207839078,-500.0,0.00013698,2]
[401431310,1768207839087,-500.0,0.00013698,2]
[401431311,1768207839097,-500.0,0.00013698,2]
[401431312,1768207839107,-500.0,0.00013698,2]
[401431313,1768207839116,-500.0,0.00013698,2]
[401431314,1768207839127,-500.0,0.00013698,2]
[401431315,1768207839138,-500.0,0.00013698,2]
[401431316,1768207839149,-500.0,0.00013698,2]
[401431317,1768207839160,-500.0,0.00013698,2]
[401431318,1768207839170,-542.67459147,0.00013698,2]
[401431319,1768207839181,-500.0,0.00013698,2]
[401431320,1768207839193,-500.0,0.00013698,2]
[401431321,1768207839204,-500.0,0.00013698,2]
[401431322,1768207839215,-502.89153827,0.00013698,2]
[401431323,1768207839224,-500.0,0.00013698,2]
[401431324,1768207839234,-559.68593167,0.00013698,2]
[401431325,1768207839244,-500.0,0.00013698,2]
[401431326,1768207839253,-500.0,0.00013698,2]
[401431327,1768207839264,-500.0,0.00013698,2]
[401431328,1768207839275,-500.0,0.00013698,2]
[401431329,1768207839285,-500.0,0.00013698,2]
[401431330,1768207839296,-500.0,0.00013698,2]
[401431331,1768207839306,-500.0,0.00013698,2]
[401431332,1768207839316,-500.0,0.00013698,2]
[401431333,1768207839326,-500.70750239,0.00013698,2]
[401431334,1768207839336,-500.0,0.00013698,2]
[401431335,1768207839345,-500.0,0.00013698,2]
[401431336,1768207839355,-500.0,0.00013698,2]
[401431337,1768207839366,-520.50202631,0.00013698,2]
[401431338,1768207839376,-500.0,0.00013698,2]
[401431339,1768207839386,-500.0,0.00013698,2]
[401431340,1768207839396,-500.0,0.00013698,2]
[401431341,1768207839406,-500.0,0.00013698,2]
[401431342,1768207839417,-500.0,0.00013698,2]
[401431343,1768207839427,-445.47805712,0.00013698,2]
[401431344,1768207839442,-54.52194288,0.00013698,2]
[401431345,1768207839453,-500.0,0.00013698,2]
[401431346,1768207839463,-500.0,0.00013698,2]
[401431347,1768207839473,-287.17578969,0.00013698,2]
[401431348,1768207839485,-220.81163596,0.00013698,2]
[401431349,1768207839495,-500.0,0.00013698,2]
[401431350,1768207839504,-500.0,0.00013698,2]
[401431351,1768207839513,-39.18836404,0.00013698,2]
[401431352,1768207839524,-460.81163596,0.00013698,2]
[401431353,1768207839533,-500.0,0.00013698,2]
[401431354,1768207839542,-157.28839404,0.00013698,2]
[401431355,1768207839575,-361.93338645,0.00013698,2]
[401431356,1768207839584,-168.93,0.00013699,2]
[401431357,1768207839593,-53.97212604,0.00013699,2]
[401431358,1768207839646,-790.67787396,0.00013699,2]
[401431359,1768207839656,-4209.22,0.00013699,2]
[401431360,1768207839665,-500.0,0.00013699,2]
[401431361,1768207839674,-542.14884444,0.00013699,2]
[401431362,1768207839683,-500.0,0.00013699,2]
[401431363,1768207839693,-500.0,0.00013699,2]
[401431364,1768207839703,-165.33,0.000137,2]
[401431365,1768207839712,-165.33,0.000137,2]
[401431366,1768207839721,-165.33,0.000137,2]
[401431367,1768207839731,-165.33,0.000137,2]
[401431368,1768207839740,-165.33,0.000137,2]
[401431369,1768207839750,-6144.1327027,0.00013794,2]
[401431370,1768207839759,-232.93,0.00013858,2]
[401431371,1768207839768,-1285.87,0.00013885,2]
[401431372,1768207839777,-500.0,0.00013896,2]
[401431373,1768207839787,-317.23562895,0.00013896,2]
[401431374,1768207839796,-511.15337826,0.00013896,2]
[401431375,1768207839807,-500.0,0.00013896,2]
[401431376,1768207839817,-40.98797303,0.00013896,2]
[401431377,1768207839854,-459.01202697,0.00013896,2]
[401431378,1768207839865,-500.0,0.00013896,2]
[401431379,1768207839877,-306.57,0.00013899,2]
[401431380,1768207839887,-151.0,0.00013929,2]
[401431381,1768207839897,-553.64373807,0.00013929,2]
[401431382,1768207839907,-322.6107,0.00013929,2]
[401431383,1768207839916,-2351.0,0.0001403,2]
[401431384,1768207839926,-433.0,0.00014036,2]
[401431385,1768207839935,-1131.10845788,0.00014099,2]
[401431386,1768207839945,-587.0,0.00014101,2]
[401431387,1768207839954,-1285.87,0.00014159,2]
[401431388,1768207839963,-1370.9413139,0.00014242,2]
[401431389,1768207839972,-637.33617149,0.00014254,2]
[401431390,1768207839981,-23704.586049,0.00014324,2]
[401431391,1768207839990,-1101.0,0.00014345,2]
[401431392,1768207839999,-4209.22,0.00014384,2]
[401431393,1768207840008,-1285.87,0.00014433,2]
[401431394,1768207840017,-404.51117323,0.00014453,2]
[401431395,1768207840026,-151.0,0.00014477,2]
[401431396,1768207840035,-574.12855637,0.00014477,2]
[401431397,1768207840046,-307.00510982,0.00014477,2]
[401431398,1768207840055,-1285.87,0.00014707,2]
[401431399,1768207840065,-334.5472959,0.0001475,2]
[401431400,1768207840074,-642.94,0.0001475,2]
[401431401,1768207840083,-5289.2080813,0.00014889,2]
[401431402,1768207840092,-300.0,0.000149,2]
[401431403,1768207840101,-151.0,0.00014974,2]
[401431404,1768207840111,-1285.87,0.00014981,2]
[401431405,1768207840123,-151.0,0.00015025,2]
[401431406,1768207840132,-595.37131296,0.00015025,2]
[401431407,1768207840142,-1131.10845788,0.0001505,2]
[401431408,1768207840151,-4209.22,0.00015068,2]
[401431409,1768207840162,-1101.0,0.000151,2]
[401431410,1768207840172,-637.33617149,0.00015166,2]
[401431411,1768207840181,-4831.1649,0.0001522,2]
[401431412,1768207840191,-1285.87,0.00015255,2]
[401431413,1768207840200,-500.0,0.00015319,2]
[401431414,1768207840210,-500.0,0.00015319,2]
[401431415,1768207840219,-551.14146089,0.00015319,2]
[401431416,1768207840229,-500.0,0.00015319,2]
[401431417,1768207840239,-736.0,0.00015322,2]
[401431418,1768207840249,-250.0,0.00015322,2]
[401431419,1768207840259,-3292.0,0.00015433,2]
[401431420,1768207840268,-823.0,0.00015485,2]
[401431421,1768207840277,-1285.87,0.00015528,2]
[401431422,1768207840287,-151.0,0.00015573,2]
[401431423,1768207840297,-617.40005154,0.00015573,2]
[401431424,1768207840307,-3731.00451843,0.0001564,2]
[401431425,1768207840316,-4209.22,0.00015753,2]
[401431426,1768207840327,-1286.00618185,0.00015802,2]
[401431427,1768207840337,-180.0,0.00015808,2]
[401431428,1768207840347,-1101.0,0.00015895,2]
[401431429,1768207840357,-400.0,0.000159,2]
[401431430,1768207840367,-1131.10845788,0.00016,2]
[401431431,1768207840379,-230.63121288,0.00016029,2]
[401431432,1768207840389,-277.21,0.0001604,2]
[401431433,1768207840398,-637.33617149,0.00016077,2]
[401431434,1768207840408,-1000.0,0.00016103,2]
[401431435,1768207840418,-9999.99,0.00016116,2]
[401431436,1768207840427,-346.92554585,0.00016119,2]
[401431437,1768207840437,-666.72878,0.00016119,2]
[401431438,1768207840446,-998.0,0.0001612,2]
[401431439,1768207840456,-151.0,0.00016121,2]
[401431440,1768207840467,-640.24385345,0.00016121,2]
[401431441,1768207840477,-150.0,0.000162,2]
[401431442,1768207840487,-150.0,0.000162,2]
[401431443,1768207840496,-150.0,0.000162,2]
[401431444,1768207840506,-331.18764993,0.000162,2]
[401431446,1768207840517,-150.0,0.000162,2]
[401431448,1768207840527,-150.0,0.000162,2]
[401431449,1768207840536,-150.48103859,0.000162,2]
[401431450,1768207840545,-150.0,0.000162,2]
[401431451,1768207840555,-150.5110912,0.000162,2]
[401431452,1768207840565,-150.0,0.000162,2]
[401431453,1768207840574,-150.64069561,0.000162,2]
[401431454,1768207840584,-150.0,0.000162,2]
[401431455,1768207840594,-150.0,0.000162,2]
[401431456,1768207840604,-150.0,0.000162,2]
[401431457,1768207840613,-150.0,0.000162,2]
[401431458,1768207840624,-331.18764993,0.00016218,2]
[401431459,1768207840633,-331.18764993,0.00016236,2]
[401431460,1768207840643,-331.18764993,0.00016255,2]
[401431461,1768207840652,-331.18764993,0.00016273,2]
[401431462,1768207840662,-150.0,0.00016275,2]
[401431463,1768207840671,-150.0,0.00016275,2]
[401431464,1768207840681,-150.0,0.0001629,2]
[401431465,1768207840690,-331.18764993,0.00016291,2]
[401431466,1768207840700,-331.18764993,0.00016309,2]
[401431467,1768207840710,-150.0,0.00016312,2]
[401431468,1768207840719,-150.0,0.00016312,2]
[401431469,1768207840729,-150.0,0.0001632,2]
[401431470,1768207840739,-331.18764993,0.00016327,2]
[401431471,1768207840748,-150.0,0.00016329,2]
[401431472,1768207840758,-150.0,0.00016338,2]
[401431473,1768207840769,-331.18764993,0.00016345,2]
[401431474,1768207840779,-150.0,0.0001635,2]
[401431475,1768207840789,-150.0,0.0001635,2]
[401431476,1768207840809,-331.18764993,0.00016364,2]
[401431477,1768207840824,-150.0,0.0001638,2]
[401431478,1768207840834,-331.18764993,0.00016382,2]
[401431479,1768207840844,-331.18764993,0.000164,2]
[401431480,1768207840854,-150.0,0.000164,2]
[401431481,1768207840866,-843.0,0.000164,2]
[401431482,1768207840879,-331.18764993,0.00016418,2]
[401431483,1768207840889,-150.0,0.00016425,2]
[401431484,1768207840901,-150.0,0.00016425,2]
[401431485,1768207840911,-150.0,0.00016425,2]
[401431486,1768207840920,-150.0,0.00016425,2]
[401431487,1768207840930,-331.18764993,0.00016436,2]
[401431488,1768207840940,-1063.57,0.00016438,2]
[401431489,1768207840950,-1063.57,0.00016438,2]
[401431490,1768207840960,-1063.57,0.00016438,2]
[401431491,1768207840970,-1063.57,0.00016438,2]
[401431492,1768207840981,-1063.57,0.00016438,2]
[401431493,1768207840993,-1063.57,0.00016438,2]
[401431494,1768207841003,-226.66,0.00016438,2]
[401431495,1768207841012,-800.75292195,0.00016438,2]
[401431496,1768207841023,-567.0,0.00016438,2]
[401431497,1768207841032,-4209.22,0.00016438,2]
[401431498,1768207841042,-151.0,0.00016438,2]
[401431499,1768207841052,-150.0,0.0001644,2]
[401431500,1768207841062,-331.18764993,0.00016455,2]
[401431501,1768207841072,-150.0,0.00016457,2]
[401431502,1768207841083,-150.0,0.00016457,2]
[401431503,1768207841093,-150.0,0.0001647,2]
[401431504,1768207841103,-331.18764993,0.00016473,2]
[401431505,1768207841113,-150.0,0.00016477,2]
[401431506,1768207841124,-331.18764993,0.00016491,2]
[401431507,1768207841134,-232.93,0.00016497,2]
[401431508,1768207841143,-150.0,0.000165,2]
[401431509,1768207841152,-150.0,0.000165,2]
[401431510,1768207841162,-331.18764993,0.00016509,2]
[401431511,1768207841172,-331.18764993,0.00016527,2]
[401431512,1768207841182,-150.0,0.00016537,2]
[401431513,1768207841191,-150.0,0.00016537,2]
[401431514,1768207841201,-331.18764993,0.00016545,2]
[401431515,1768207841210,-150.0,0.0001656,2]
[401431516,1768207841220,-150.0,0.0001656,2]
[401431517,1768207841229,-331.18764993,0.00016564,2]
[401431518,1768207841239,-500.0,0.00016565,2]
[401431519,1768207841249,-500.0,0.00016565,2]
[401431520,1768207841258,-500.0,0.00016565,2]
[401431521,1768207841269,-150.0,0.00016575,2]
[401431522,1768207841279,-150.0,0.00016575,2]
[401431523,1768207841289,-331.18764993,0.00016582,2]
[401431524,1768207841299,-150.0,0.00016586,2]
[401431525,1768207841309,-331.18764993,0.000166,2]
[401431526,1768207841320,-150.0,0.000166,2]
[401431527,1768207841330,-150.0,0.00016615,2]
[401431528,1768207841340,-331.18764993,0.00016618,2]
[401431529,1768207841350,-331.18764993,0.00016636,2]
[401431530,1768207841364,-150.0,0.0001665,2]
[401431531,1768207841376,-150.0,0.0001665,2]
[401431532,1768207841386,-150.0,0.0001665,2]
[401431533,1768207841396,-150.0,0.0001665,2]
[401431534,1768207841407,-150.0,0.0001665,2]
[401431535,1768207841417,-331.18764993,0.00016655,2]
[401431536,1768207841426,-151.0,0.00016669,2]
[401431537,1768207841436,-663.93287602,0.00016669,2]
[401431538,1768207841446,-331.18764993,0.00016673,2]
[401431539,1768207841456,-150.0,0.0001668,2]
[401431540,1768207841465,-1101.0,0.0001669,2]
[401431541,1768207841475,-331.18764993,0.00016691,2]
[401431542,1768207841485,-1000.0,0.00016707,2]
[401431543,1768207841495,-331.18764993,0.00016709,2]
[401431544,1768207841504,-159.73,0.00016712,2]
[401431545,1768207841514,-1252.0,0.00016714,2]
[401431546,1768207841523,-150.0,0.00016714,2]
[401431547,1768207841533,-150.0,0.00016714,2]
[401431548,1768207841543,-150.0,0.00016725,2]
[401431549,1768207841552,-150.0,0.00016725,2]
[401431550,1768207841562,-331.18764993,0.00016727,2]
[401431551,1768207841572,-150.0,0.0001674,2]
[401431552,1768207841582,-331.18764993,0.00016745,2]
[401431553,1768207841591,-150.0,0.00016754,2]
[401431554,1768207841600,-150.0,0.00016762,2]
[401431555,1768207841610,-150.0,0.00016762,2]
[401431556,1768207841620,-331.18764993,0.00016764,2]